{"text_format":"1","workbook":"xlsx","n_sheets":3,"sheets":["Feuil3","SUIVIS","FICHIER "],"not_rendered":{"charts":0,"images":0,"macros":1,"external_links":1,"defined_names":5,"comments":0,"pivot_tables":0},"unopened":[],"bounds":{"document_bytes":16777216,"sheet_cells":100000,"rows_first":2000,"rows_last":500,"rows_between":2000,"halvings":0,"cell_chars":16384,"cell_head_chars":4096},"cells_cut":0,"cells_raw":0,"read":"whole","date_system":"1900"}

{"sheet":"Feuil3","index":0,"n_rows":20,"n_cols":6,"rows_kept":20,"cut":false,"hidden":false,"merged":[]}
[]
[]
[]
[]
[]
[]
[]
[]
[]
[null,null,null,"CLIENT                                   PROSPECT ",null,"PARTICULIER                           PROFESSIONNEL "]
[]
[null,null,null,"Client",null,"Professionnel"]
[]
[null,null,null,"RAISON SOCIALE",null,"kkkk"]
[]
[null,null,null,"N° SIRET",null,"kkkk"]
[]
[null,null,null,"PRENOM",null,"kkkkk"]
[]
[null,null,null,"NOM",null,"kkk"]

{"sheet":"SUIVIS","index":1,"n_rows":15,"n_cols":8,"rows_kept":15,"cut":false,"hidden":false,"merged":[]}
[]
[]
[]
[]
[]
[null,null,"CLIENT PROSPECT","PARTICULIER PROFESSIONNEL","RAISON SOCIALE","N° SIRET","PRENOM","NOM"]
[null,null,{"$f":"IFERROR(INDEX(Tableau2[[#All],[CLIENT PROSPECT]],_xlfn.AGGREGATE(15,6,ROW(Tableau2[#All])/(Tableau2[#This Row]=\"oui\"),ROW(C1))),\"\")","v":"CLIENT"},{"$f":"IFERROR(INDEX(Tableau2[[#All],[PARTICULIER PROFESSIONNEL]],_xlfn.AGGREGATE(15,6,ROW(Tableau2[SUIVIS])/(Tableau2[[#All],[SUIVIS]]=\"oui\"),ROW(C1))),\"\")","v":0},null,null,{"$f":"IFERROR(INDEX(Tableau2[PRENOM],_xlfn.AGGREGATE(15,6,ROW(Tableau2[[#All],[SUIVIS]])-ROW('FICHIER '!$I$7)+1/(Tableau2[#All]=\"oui\"),ROW(1:1))),\"\")","v":"FREDERIC"},{"$f":"IFERROR(INDEX(Tableau2[NOM],_xlfn.AGGREGATE(15,6,ROW(Tableau2[[#All],[SUIVIS]])-ROW('FICHIER '!$I$7)+1/(Tableau2[#All]=\"oui\"),ROW(1:1))),\"\")","v":"DURAND"}]
[null,null,{"$f":"IFERROR(INDEX(Tableau2[[#All],[CLIENT PROSPECT]],_xlfn.AGGREGATE(15,6,ROW(Tableau2[#All])/(Tableau2[#This Row]=\"oui\"),ROW(C2))),\"\")","v":"CLIENT"},{"$f":"IFERROR(INDEX(Tableau2[[#All],[PARTICULIER PROFESSIONNEL]],_xlfn.AGGREGATE(15,6,ROW(Tableau2[SUIVIS])/(Tableau2[[#All],[SUIVIS]]=\"oui\"),ROW(C2))),\"\")","v":0},null,null,{"$f":"IFERROR(INDEX(Tableau2[PRENOM],_xlfn.AGGREGATE(15,6,ROW(Tableau2[[#All],[SUIVIS]])-ROW('FICHIER '!$I$7)+1/(Tableau2[#All]=\"oui\"),ROW(2:2))),\"\")","v":"FLORIAN"},{"$f":"IFERROR(INDEX(Tableau2[NOM],_xlfn.AGGREGATE(15,6,ROW(Tableau2[[#All],[SUIVIS]])-ROW('FICHIER '!$I$7)+1/(Tableau2[#All]=\"oui\"),ROW(2:2))),\"\")","v":"FERNANDEZ"}]
[null,null,{"$f":"IFERROR(INDEX(Tableau2[[#All],[CLIENT PROSPECT]],_xlfn.AGGREGATE(15,6,ROW(Tableau2[#All])/(Tableau2[#This Row]=\"oui\"),ROW(C3))),\"\")","v":0},{"$f":"IFERROR(INDEX(Tableau2[[#All],[PARTICULIER PROFESSIONNEL]],_xlfn.AGGREGATE(15,6,ROW(Tableau2[SUIVIS])/(Tableau2[[#All],[SUIVIS]]=\"oui\"),ROW(C3))),\"\")","v":0},null,null,{"$f":"IFERROR(INDEX(Tableau2[PRENOM],_xlfn.AGGREGATE(15,6,ROW(Tableau2[[#All],[SUIVIS]])-ROW('FICHIER '!$I$7)+1/(Tableau2[#All]=\"oui\"),ROW(3:3))),\"\")","v":"FERNAND"},{"$f":"IFERROR(INDEX(Tableau2[NOM],_xlfn.AGGREGATE(15,6,ROW(Tableau2[[#All],[SUIVIS]])-ROW('FICHIER '!$I$7)+1/(Tableau2[#All]=\"oui\"),ROW(3:3))),\"\")","v":"LOPEZ"}]
[null,null,{"$f":"IFERROR(INDEX(Tableau2[[#All],[CLIENT PROSPECT]],_xlfn.AGGREGATE(15,6,ROW(Tableau2[#All])/(Tableau2[#This Row]=\"oui\"),ROW(C4))),\"\")","v":0},{"$f":"IFERROR(INDEX(Tableau2[[#All],[PARTICULIER PROFESSIONNEL]],_xlfn.AGGREGATE(15,6,ROW(Tableau2[SUIVIS])/(Tableau2[[#All],[SUIVIS]]=\"oui\"),ROW(C4))),\"\")","v":0},null,null,{"$f":"IFERROR(INDEX(Tableau2[PRENOM],_xlfn.AGGREGATE(15,6,ROW(Tableau2[[#All],[SUIVIS]])-ROW('FICHIER '!$I$7)+1/(Tableau2[#All]=\"oui\"),ROW(4:4))),\"\")","v":"LOIC"},{"$f":"IFERROR(INDEX(Tableau2[NOM],_xlfn.AGGREGATE(15,6,ROW(Tableau2[[#All],[SUIVIS]])-ROW('FICHIER '!$I$7)+1/(Tableau2[#All]=\"oui\"),ROW(4:4))),\"\")","v":"PEREZ"}]
[null,null,{"$f":"IFERROR(INDEX(Tableau2[[#All],[CLIENT PROSPECT]],_xlfn.AGGREGATE(15,6,ROW(Tableau2[#All])/(Tableau2[#This Row]=\"oui\"),ROW(C5))),\"\")","v":0},{"$f":"IFERROR(INDEX(Tableau2[[#All],[PARTICULIER PROFESSIONNEL]],_xlfn.AGGREGATE(15,6,ROW(Tableau2[SUIVIS])/(Tableau2[[#All],[SUIVIS]]=\"oui\"),ROW(C5))),\"\")","v":0},null,null,{"$f":"IFERROR(INDEX(Tableau2[PRENOM],_xlfn.AGGREGATE(15,6,ROW(Tableau2[[#All],[SUIVIS]])-ROW('FICHIER '!$I$7)+1/(Tableau2[#All]=\"oui\"),ROW(5:5))),\"\")","v":"REMY"},{"$f":"IFERROR(INDEX(Tableau2[NOM],_xlfn.AGGREGATE(15,6,ROW(Tableau2[[#All],[SUIVIS]])-ROW('FICHIER '!$I$7)+1/(Tableau2[#All]=\"oui\"),ROW(5:5))),\"\")","v":"DURAND"}]
[null,null,{"$f":"IFERROR(INDEX(Tableau2[[#All],[CLIENT PROSPECT]],_xlfn.AGGREGATE(15,6,ROW(Tableau2[#All])/(Tableau2[#This Row]=\"oui\"),ROW(C6))),\"\")","v":0},{"$f":"IFERROR(INDEX(Tableau2[[#All],[PARTICULIER PROFESSIONNEL]],_xlfn.AGGREGATE(15,6,ROW(Tableau2[SUIVIS])/(Tableau2[[#All],[SUIVIS]]=\"oui\"),ROW(C6))),\"\")","v":0},null,null,{"$f":"IFERROR(INDEX(Tableau2[PRENOM],_xlfn.AGGREGATE(15,6,ROW(Tableau2[[#All],[SUIVIS]])-ROW('FICHIER '!$I$7)+1/(Tableau2[#All]=\"oui\"),ROW(6:6))),\"\")","v":"MARTIN"},{"$f":"IFERROR(INDEX(Tableau2[NOM],_xlfn.AGGREGATE(15,6,ROW(Tableau2[[#All],[SUIVIS]])-ROW('FICHIER '!$I$7)+1/(Tableau2[#All]=\"oui\"),ROW(6:6))),\"\")","v":"FERNANDEZ"}]
[null,null,{"$f":"IFERROR(INDEX(Tableau2[[#All],[CLIENT PROSPECT]],_xlfn.AGGREGATE(15,6,ROW(Tableau2[#All])/(Tableau2[#This Row]=\"oui\"),ROW(C7))),\"\")","v":0},{"$f":"IFERROR(INDEX(Tableau2[[#All],[PARTICULIER PROFESSIONNEL]],_xlfn.AGGREGATE(15,6,ROW(Tableau2[SUIVIS])/(Tableau2[[#All],[SUIVIS]]=\"oui\"),ROW(C7))),\"\")","v":""},null,null,{"$f":"IFERROR(INDEX(Tableau2[PRENOM],_xlfn.AGGREGATE(15,6,ROW(Tableau2[[#All],[SUIVIS]])-ROW('FICHIER '!$I$7)+1/(Tableau2[#All]=\"oui\"),ROW(7:7))),\"\")","v":"lid"},{"$f":"IFERROR(INDEX(Tableau2[NOM],_xlfn.AGGREGATE(15,6,ROW(Tableau2[[#All],[SUIVIS]])-ROW('FICHIER '!$I$7)+1/(Tableau2[#All]=\"oui\"),ROW(7:7))),\"\")","v":"lid"}]
[null,null,{"$f":"IFERROR(INDEX(Tableau2[[#All],[CLIENT PROSPECT]],_xlfn.AGGREGATE(15,6,ROW(Tableau2[#All])/(Tableau2[#This Row]=\"oui\"),ROW(C8))),\"\")","v":0},{"$f":"IFERROR(INDEX(Tableau2[[#All],[PARTICULIER PROFESSIONNEL]],_xlfn.AGGREGATE(15,6,ROW(Tableau2[SUIVIS])/(Tableau2[[#All],[SUIVIS]]=\"oui\"),ROW(C8))),\"\")","v":""},null,null,{"$f":"IFERROR(INDEX(Tableau2[PRENOM],_xlfn.AGGREGATE(15,6,ROW(Tableau2[[#All],[SUIVIS]])-ROW('FICHIER '!$I$7)+1/(Tableau2[#All]=\"oui\"),ROW(8:8))),\"\")","v":"fsd"},{"$f":"IFERROR(INDEX(Tableau2[NOM],_xlfn.AGGREGATE(15,6,ROW(Tableau2[[#All],[SUIVIS]])-ROW('FICHIER '!$I$7)+1/(Tableau2[#All]=\"oui\"),ROW(8:8))),\"\")","v":"fds"}]
[null,null,{"$f":"IFERROR(INDEX(Tableau2[[#All],[CLIENT PROSPECT]],_xlfn.AGGREGATE(15,6,ROW(Tableau2[#All])/(Tableau2[#This Row]=\"oui\"),ROW(C9))),\"\")","v":""},{"$f":"IFERROR(INDEX(Tableau2[[#All],[PARTICULIER PROFESSIONNEL]],_xlfn.AGGREGATE(15,6,ROW(Tableau2[SUIVIS])/(Tableau2[[#All],[SUIVIS]]=\"oui\"),ROW(C9))),\"\")","v":""},null,null,{"$f":"IFERROR(INDEX(Tableau2[PRENOM],_xlfn.AGGREGATE(15,6,ROW(Tableau2[[#All],[SUIVIS]])-ROW('FICHIER '!$I$7)+1/(Tableau2[#All]=\"oui\"),ROW(9:9))),\"\")","v":"kok"},{"$f":"IFERROR(INDEX(Tableau2[NOM],_xlfn.AGGREGATE(15,6,ROW(Tableau2[[#All],[SUIVIS]])-ROW('FICHIER '!$I$7)+1/(Tableau2[#All]=\"oui\"),ROW(9:9))),\"\")","v":"ko"}]

{"sheet":"FICHIER ","index":2,"n_rows":18,"n_cols":9,"rows_kept":18,"cut":false,"hidden":false,"merged":[]}
[]
[]
[]
[]
[]
[null,null,"CLIENT PROSPECT","PARTICULIER PROFESSIONNEL","RAISON SOCIALE","N° SIRET","PRENOM","NOM","SUIVIS"]
[null,null,"CLIENT","PARTICULIER",null,null,"FREDERIC","DURAND","oui"]
[null,null,"CLIENT","PARTICULIER",null,null,"FLORIAN","FERNANDEZ","oui"]
[null,null,"PROSPECT","PARTCULIER",null,null,"FERNAND","LOPEZ","oui"]
[null,null,"PROSPECT","PROFESSIONNEL",null,null,"LOIC","PEREZ","oui"]
[null,null,"CLIENT","PARTICULIER",null,null,"REMY","DURAND","oui"]
[null,null,"CLIENT","PARTICULIER",null,null,"MARTIN","FERNANDEZ","oui"]
[null,null,null,null,null,null,"lid","lid","oui"]
[null,null,null,null,null,null,"fsd","fds","oui"]
[null,null,null,null,null,null,"kok","ko","oui"]
[null,null,null,null,null,null,"jk","jk","oui"]
[null,null,null,null,null,null,"ljh","dsq","oui"]
[null,null,null,null,null,null,"pop","dsq","oui"]